[Event "67th Mexican-ch Open 2022"]
[Site "Chihuahua"]
[Date "2022.04.15"]
[Round "5.12"]
[White "Diaz Rosas, Julio Cesar"]
[Black "Gongora Montes, Benjamin"]
[Result "1-0"]
[ECO "C55"]
[WhiteElo "2393"]
[BlackElo "2157"]
[Annotator "TA"]
[PlyCount "71"]
[EventDate "2022.04.12"]
[EventType "swiss"]
[EventCountry "MEX"]
[SourceTitle "playchess.com"]
[Source "ChessBase"]
[SourceQuality "1"]
[TimeControl "5400+30"]

{[%evp 9,71,11,31,24,40,27,28,13,52,50,56,53,84,41,40,45,45,35,64,75,129,127,118,126,152,155,137,150,150,142,180,139,153,62,64,59,45,56,56,59,118,113,115,104,102,102,136,143,239,239,273,269,263,265,264,246,247,248,432,425,491,465,483,450]} 1. e4 {[%emt 1:31:00]} e5 {[%emt 0:02:43]} 2. Nf3 {[%emt 0:00:00]} Nc6 {[%emt 0:00:04]} 3. Bc4 {[%emt 0:00:00]} Nf6 {[%emt 0:00:07]} 4. d3 {[%emt 0:00:00]} h6 {[%emt 0:00:03]} 5. h3 {[%emt 0:00:00]} d6 {[%emt 0:01:30]} 6. a4 {[%emt 0:00:00] C55: Two Knights: 4 d3, 4 d4 exd4 5 e5 and Max Lange Attack.} g6 {[%emt 0:02:06]} 7. a5 {[%emt 0:03:00]} Bg7 {[%emt 0:00:15] [#]} 8. a6 $146 {[%emt 0:00:00] White has an edge.} ({Predecessor:} 8. Nc3 Be6 9. a6 b6 10. Nd5 Bxd5 11. exd5 Ne7 12. Bb5+ Nd7 13. g4 Rc8 14. c4 {½-½ (26) Krupenski,J (2396)-Sepp,O (2436) Viljandi 2016}) 8... bxa6 {[%emt 0:00:32]} 9. Bxa6 {[%emt 0:00:00]} O-O {[%emt 0:01:07]} 10. O-O {[%emt 0:00:00]} Nh5 {[%emt 0:06:58]} 11. Nc3 {[%emt 0:00:00][%cal Bb1c3,Bc3e2,Be2f4][%mdl 32]} Bxa6 {[%emt 0:04:35]} 12. Rxa6 {[%emt 0:00:00]} Nb4 {[%emt 0:00:09]} 13. Ra3 {[%emt 0:00:00]} c6 {[%emt 0:05:15]} 14. Be3 {[%emt 0:00:00]} Nf4 {[%emt 0:03:43]} (14... a5 $142) 15. Bxf4 $16 {[%emt 0:00:00]} ({Worse is} 15. Rxa7 Rxa7 16. Bxa7 c5 $17) 15... exf4 {[%emt 0:00:08] [#]} 16. Ne2 $1 {[%emt 0:00:00] Pair of Knights!} d5 {[%emt 0:03:45]} (16... Bxb2 $2 17. Rb3 $18) 17. e5 {[%emt 0:00:00] Hoping for c3.} c5 {[%emt 0:05:04]} 18. Nxf4 {[%emt 0:00:00]} Nc6 {[%emt 0:00:09]} 19. Re1 {[%emt 0:00:00]} Re8 {[%emt 0:00:56][%cal Rc6e5]} 20. d4 {[%emt 0:00:00]} cxd4 {[%emt 0:00:47][%cal Rc6e5]} 21. Nxd4 {[%emt 0:00:00] &Bianco is more active.} (21. e6 $16) 21... Nxe5 $14 {[%emt 0:28:19]} 22. Rae3 {[%emt 0:00:00]} Qd7 {[%emt 0:00:08]} 23. b3 {[%emt 0:00:00] Prevents Nc4.} a5 {[%emt 0:24:09]} 24. c3 {[%emt 0:00:00][%cal Bc2c3,Bc3c4][%mdl 32]} Kf8 {[%emt 0:05:56]} ({Black should play} 24... Re7 $14) 25. Nf3 $16 {[%emt 0:00:00]} Nxf3+ {[%emt 0:00:23]} 26. Qxf3 {[%emt 0:00:00] [#] Strongly threatening Nxg6+.} ({And not} 26. gxf3 Rxe3 27. Rxe3 d4 28. cxd4 Qxd4 $15) 26... Rxe3 {[%emt 0:02:06]} 27. Rxe3 {[%emt 0:00:00]} Kg8 {[%emt 0:00:52]} 28. Nxd5 {[%emt 0:00:00]} ({Don't take} 28. Qxd5 Qxd5 29. Nxd5 a4 30. bxa4 Rxa4 $16) 28... Rf8 {[%emt 0:01:51]} (28... Re8 $16 {keeps fighting.} 29. Rxe8+ Qxe8) 29. c4 $40 {[%emt 0:00:00][%mdl 128] Black is in trouble.} Qd6 {[%emt 0:00:24]} 30. g3 {[%emt 0:00:00]} h5 {[%emt 0:00:12]} 31. Kg2 {[%emt 0:00:00]} Bd4 {[%emt 0:00:42]} 32. Rd3 {[%emt 0:00:00]} Bg7 {[%emt 0:00:50]} 33. Qe4 {[%emt 0:00:00] Against Re8. aiming for Ne7+.} Qc5 {[%emt 0:00:12]} (33... Kh7 {might work better.} 34. Re3 Qc5) 34. g4 {[%emt 0:00:00] White is clearly winning.} hxg4 {[%emt 0:00:43]} 35. hxg4 {[%emt 0:00:00] Threatens to win with Ne7+.} Rb8 {[%emt 0:00:08]} 36. Ne7+ {[%emt 0:00:00] Weighted Error Value: White=0.08 (flawless) /Black=0.25 (precise)} 1-0

[Event "67th Mexican-ch Open 2022"]
[Site "Chihuahua"]
[Date "2022.04.15"]
[Round "5.13"]
[White "Luna Javier, Edgar Froylan"]
[Black "Garcia Guerrero, Isaac Antonio"]
[Result "1/2-1/2"]
[ECO "A07"]
[WhiteElo "2148"]
[BlackElo "2338"]
[Annotator "TA"]
[PlyCount "86"]
[EventDate "2022.04.12"]
[EventType "swiss"]
[EventCountry "MEX"]
[SourceTitle "playchess.com"]
[Source "ChessBase"]
[SourceQuality "1"]
[TimeControl "5400+30"]

{[%evp 11,86,10,17,11,24,9,20,9,17,1,-8,0,50,20,57,38,29,40,66,20,9,24,25,0,0,-100,-2,-14,-18,-33,-25,-40,-27,-87,-25,-31,-20,-20,0,-30,-27,-27,0,0,0,2,12,-14,-15,-34,0,0,45,39,117,101,118,120,112,38,121,121,90,99,195,182,121,93,116,129,122,0,121,0,119,0,83]} 1. Nf3 {[%emt 0:09:07]} Nf6 {[%emt 0:00:23]} 2. g3 {[%emt 0:00:48]} d5 {[%emt 0:00:30]} 3. Bg2 {[%emt 0:00:08]} c6 {[%emt 0:00:12]} 4. O-O {[%emt 0:00:21]} Bf5 {[%emt 0:00:28]} 5. b3 {[%emt 0:02:51]} h6 {[%emt 0:05:55]} 6. Bb2 {[%emt 0:00:58]} e6 {[%emt 0:00:17]} 7. d3 {[%emt 0:00:56] A07: Réti Opening: New York and Capablanca Systems.} a5 {[%emt 0:00:29]} 8. Nbd2 {[%emt 0:06:02]} Be7 {[%emt 0:02:40]} 9. e4 {[%emt 0:04:09]} Bh7 {[%emt 0:11:42]} 10. Ne5 {[%emt 0:06:02] [#]} a4 $146 {[%emt 0:01:18]} ({Predecessor:} 10... O-O 11. Kh1 Nbd7 12. f4 Qc7 13. Qe2 Ra6 14. g4 Ne8 15. Ndf3 Nxe5 16. Bxe5 Qd8 {1-0 (39) Matovic,M (2264)-Radovic,G (1929) Belgrade 2017}) 11. bxa4 {[%emt 0:00:29]} Qb6 {[%emt 0:01:36]} (11... O-O $11) 12. Rb1 $14 {[%emt 0:00:55][%cal Oe5f7] Nxf7! is the strong threat.} Qa7 {[%emt 0:13:10]} 13. Bc3 {[%emt 0:07:15]} O-O $1 {[%emt 0:02:22]} 14. a5 {[%emt 0:05:40]} Na6 {[%emt 0:05:16]} 15. Nb3 {[%emt 0:10:56] &Bianco is more active.} (15. Ng4 $14) 15... dxe4 $11 {[%emt 0:08:16]} 16. dxe4 {[%emt 0:00:59]} Bxe4 {[%emt 0:02:00]} 17. Ng4 {[%emt 0:12:41]} Rfd8 {[%emt 0:04:17]} 18. Bd4 {[%emt 0:09:06]} (18. Qe2 $11 {keeps the balance.} Nxg4 19. Bxe4) 18... c5 {[%emt 0:11:34]} ({Black should play} 18... Bxg2 $1 $17 19. Bxa7 Rxd1 20. Nxf6+ Bxf6 21. Rfxd1 Be4) 19. Nxf6+ {[%emt 0:00:59]} Bxf6 {[%emt 0:00:30][%mdl 64] Pin} 20. Bxe4 {[%emt 0:00:21]} cxd4 {[%emt 0:00:42]} 21. Qh5 {[%emt 0:03:52]} Rac8 {[%emt 0:02:25]} 22. Rfd1 {[%emt 0:02:18]} (22. a3 $11) 22... Nc5 {[%emt 0:02:02]} (22... Nb4 $17 23. Nd2 Rc5 $1) 23. Nxc5 {[%emt 0:00:04]} Qxc5 {[%emt 0:01:45]} 24. Qf3 {[%emt 0:01:33]} Rc7 {[%emt 0:02:34]} 25. Bd3 {[%emt 0:08:02]} Qxa5 {[%emt 0:00:54]} 26. Rb2 {[%emt 0:00:32]} Rdd7 {[%emt 0:10:19]} 27. Rdb1 {[%emt 0:00:18]} Qa7 {[%emt 0:00:37]} 28. a4 {[%emt 0:01:01]} Re7 {[%emt 0:00:28]} 29. Qe4 {[%emt 0:00:12][%mdl 1024] Intending Qh7+ and mate. White has compensation.} g6 {[%emt 0:00:32]} 30. Rb4 {[%emt 0:00:14]} Kg7 {[%emt 0:00:21]} 31. h4 {[%emt 0:00:10][%cal Oh4h5]} Qa5 {[%emt 0:01:29]} 32. Rb5 {[%emt 0:01:20]} Qd2 {[%emt 0:03:24]} (32... Qc3 $14) 33. h5 $16 {[%emt 0:00:12]} gxh5 {[%emt 0:00:38]} 34. Rxh5 {[%emt 0:00:27]} Kf8 {[%emt 0:00:21] [#]} 35. Qf3 {[%emt 0:00:55]} (35. Rhb5 $1 $16) 35... Bg7 {[%emt 0:01:21]} (35... Bg5 $14) 36. Rhb5 {[%emt 0:00:01]} Qc3 {[%emt 0:00:40]} 37. Kg2 {[%emt 0:00:54]} ({Of course not} 37. Rxb7 $6 Rxb7 38. Rxb7 Rxb7 39. Qxb7 Qa1+ 40. Kg2 Qxa4 $11) 37... Qa3 {[%emt 0:01:50]} (37... Qc6 $16) 38. a5 $18 {[%emt 0:00:50]} ({Worse is} 38. Rxb7 Rxb7 39. Rxb7 Rxb7 40. Qxb7 Qxa4 $11) 38... Red7 {[%emt 0:00:36]} 39. Qe4 {[%emt 0:00:46]} ({Much worse is} 39. Rxb7 $6 Rxb7 40. Rxb7 Rxb7 41. Qxb7 Qxa5 $11) 39... Bf6 {[%emt 0:00:44]} 40. Qf4 {[%emt 0:00:33]} Bg7 {[%emt 0:00:24]} 41. Qe4 {[%emt 0:00:01]} Bf6 $1 {[%emt 0:00:08]} 42. Qf4 {[%emt 0:01:03]} Bg7 {[%emt 0:00:09]} 43. Qe4 {[%emt 0:00:32]} Bf6 $1 {[%emt 0:00:24] Weighted Error Value: White=0.25 (precise) /Black=0.19 (very precise)} 1/2-1/2

[Event "67th Mexican-ch Open 2022"]
[Site "Chihuahua"]
[Date "2022.04.15"]
[Round "5.14"]
[White "Rosales Campos, Paul"]
[Black "Benitez Lozano, Javier"]
[Result "0-1"]
[ECO "A31"]
[WhiteElo "2039"]
[BlackElo "2309"]
[Annotator "TA"]
[PlyCount "134"]
[EventDate "2022.04.12"]
[EventType "swiss"]
[EventCountry "MEX"]
[SourceTitle "playchess.com"]
[Source "ChessBase"]
[SourceQuality "1"]
[TimeControl "5400+30"]

{[%evp 30,134,33,11,49,21,24,-27,-12,-27,4,21,70,16,46,13,13,0,17,-21,43,27,52,38,28,0,0,0,0,-46,-58,-52,-49,-108,-111,-97,-105,-103,-66,-72,-70,-102,-104,-180,-181,-179,-177,-184,-177,-213,-213,-227,-210,-235,-230,-241,-220,-264,-263,-310,-309,-514,-518,-486,-419,-672,-709,-621,-536,-777,-738,-949,-890,-1372,-1309,-1510,-1381,-29978,-29979,-29970,-1801,-1688,-1579,-29976,-29976,-29975,-29974,-29976,-29971,-29983,-29984,-29984,-29985,-29985,-29986,-29985,-29981,-29981,-29982,-29982,-29980,-29979,-29980,-29980,-29979,-29979,-29960]} 1. e4 {[%emt 0:00:17]} c5 {[%emt 0:01:25]} 2. Nf3 {[%emt 0:00:51]} e6 {[%emt 0:00:18]} 3. d4 {[%emt 0:00:34]} cxd4 {[%emt 0:00:17]} 4. Nxd4 {[%emt 0:00:25]} a6 {[%emt 0:00:18]} 5. c4 {[%emt 0:00:57]} Nf6 {[%emt 0:00:27]} 6. Nc3 {[%emt 0:00:59]} Qc7 {[%emt 0:00:23]} 7. Be2 {[%emt 0:04:25]} b6 {[%emt 0:00:43]} 8. Be3 {[%emt 0:28:30]} Bb7 {[%emt 0:01:22]} 9. f3 {[%emt 0:06:48]} Be7 {[%emt 0:05:26]} 10. a3 {[%emt 0:06:28]} d6 {[%emt 0:07:09]} 11. Qd2 {[%emt 0:03:57]} O-O {[%emt 0:02:55]} 12. Rc1 {[%emt 0:07:29]} Nbd7 {[%emt 0:01:06]} 13. O-O {[%emt 0:01:04]} Rac8 {[%emt 0:01:14]} 14. Rfd1 {[%emt 0:01:56]} Qb8 {[%emt 0:04:34]} 15. Qe1 {[%emt 0:01:29]} Rfe8 {[%emt 0:01:37]} 16. Qf2 {[%emt 0:04:50] [#]} h5 $146 {[%emt 0:09:41] A31: Symmetrical English: 2 Nf3 Nf6 3 d4.} ({Predecessor:} 16... Bd8 17. b4 Ne5 18. Nb3 Nxc4 19. Bxc4 Rxc4 20. Bxb6 Be7 21. Na5 Rcc8 22. Ba7 Qa8 23. Nxb7 Qxb7 24. Qb6 Qxb6+ 25. Bxb6 {½-½ (44) Zhapova,Y (2196)-Mijailovic,Z (2368) Belgrade 2021}) 17. Kh1 {[%emt 0:09:07]} h4 {[%emt 0:10:32]} 18. Qxh4 {[%emt 0:11:11] [#]} ({Better is} 18. b4) 18... Nxe4 $1 $11 {[%emt 0:03:14] Black has an edge.} 19. Qh3 {[%emt 0:00:57]} (19. Qh5 Nxc3) 19... Nef6 {[%emt 0:19:40]} 20. f4 {[%emt 0:01:00]} Bf8 {[%emt 0:05:15]} (20... d5 $11 {is superior.}) 21. Re1 {[%emt 0:04:12]} (21. f5 $1 $14) 21... Nc5 {[%emt 0:07:34]} 22. b4 {[%emt 0:01:41]} Nce4 {[%emt 0:01:45]} 23. Kg1 {[%emt 0:02:03]} g6 {[%emt 0:05:12]} 24. Nf3 {[%emt 0:00:27]} Bg7 {[%emt 0:03:15]} (24... Nxc3 $11 25. Rxc3 Bxf3 26. Bxf3 b5) 25. Nxe4 $14 {[%emt 0:00:20]} Bxe4 {[%emt 0:01:59]} 26. Ng5 {[%emt 0:00:39]} b5 {[%emt 0:02:58]} 27. cxb5 {[%emt 0:00:44]} (27. Bd4 {feels hotter.} Qb7 28. c5 dxc5 29. bxc5 Red8 30. Be5) 27... Rxc1 {[%emt 0:00:21]} 28. Rxc1 {[%emt 0:00:07]} axb5 {[%emt 0:00:09]} 29. Nxe4 {[%emt 0:00:36]} (29. Bd4 $11 Qb7 30. Bxb5 $1 Bxg2 31. Qd3 (31. Qxg2 Qxb5 32. Qc6 Qb8 $11)) 29... Nxe4 $15 {[%emt 0:00:07]} 30. Qf3 {[%emt 0:00:25]} d5 {[%emt 0:01:56]} 31. Bc5 {[%emt 0:00:53]} (31. g4 $15) 31... Nxc5 $17 {[%emt 0:01:45] &Nero is more active.} 32. bxc5 {[%emt 0:00:08]} Bd4+ {[%emt 0:01:01][%cal Bg7d4,Bd4e3,Be3f4][%mdl 32]} 33. Kh1 {[%emt 0:00:42]} Rc8 {[%emt 0:00:18][%cal Be8c8,Bc8c6,Bc6b6,Bb6b2][%mdl 32]} 34. c6 {[%emt 0:00:41] [#]} Qb6 $1 {[%emt 0:00:54] Black continues to play with concentration.} 35. Qd3 {[%emt 0:00:23]} Be3 {[%emt 0:00:35]} 36. Re1 {[%emt 0:00:41]} (36. Rf1 $17) 36... Rxc6 $19 {[%emt 0:00:32]} 37. Qxb5 {[%emt 0:00:06]} Bxf4 {[%emt 0:00:28][%cal Ob6f2]} 38. g3 {[%emt 0:00:50]} Bd2 {[%emt 0:00:33]} 39. Qxb6 {[%emt 0:00:28]} Rxb6 {[%emt 0:00:04][%mdl 4096] Endgame KRB-KRB} 40. Rd1 {[%emt 0:00:13]} Bc3 {[%emt 0:00:35]} 41. a4 {[%emt 0:00:54]} Rb2 {[%emt 0:00:07]} 42. Bb5 {[%emt 0:00:25]} f5 {[%emt 0:01:06]} 43. Rd3 {[%emt 0:00:29]} d4 {[%emt 0:00:11] Strongly threatening ...e5.} 44. Bc4 {[%emt 0:00:07]} Kf7 {[%emt 0:00:05]} 45. a5 $2 {[%emt 0:00:14]} (45. Rf3 {keeps fighting.}) 45... Rb4 {[%emt 0:00:18]} 46. Ba6 {[%emt 0:00:50]} Ra4 {[%emt 0:00:09]} 47. Kg2 {[%emt 0:00:28]} (47. g4 $142) 47... Rxa5 {[%emt 0:00:04]} 48. Bc4 {[%emt 0:00:04]} Kf6 {[%emt 0:00:31]} 49. h4 {[%emt 0:00:16]} e5 {[%emt 0:00:09][%cal Be6e5,Be5e4][%mdl 32]} 50. Rd1 {[%emt 0:00:11]} Ra4 {[%emt 0:00:54]} 51. Bd5 {[%emt 0:00:20]} Rb4 {[%emt 0:00:16]} 52. g4 {[%emt 0:01:49]} e4 {[%emt 0:00:05] White must now prevent ...e3.} 53. g5+ {[%emt 0:00:23]} Ke5 {[%emt 0:00:37]} 54. Bf7 {[%emt 0:00:09]} Rb6 {[%emt 0:02:05]} (54... Rb2+ $142 55. Kg3 e3 56. Bc4 e2 57. Bxe2 Rxe2 58. Kf3 Re3+ 59. Kf2 Ke4 60. Rc1 Rh3 61. Kg2 Rxh4 62. Rc2 Rg4+ 63. Kf2 Rf4+ 64. Kg3 Be1+ 65. Kg2 d3 66. Rb2 d2 67. Rb4+ Ke3 68. Rb1 Ke2 69. Kg1 Rg4+ 70. Kh2 Kf1 71. Rb3 Rh4+ 72. Rh3 Rxh3+ 73. Kxh3 d1=Q 74. Kh2 Qh5#) 55. h5 {[%emt 0:00:57]} gxh5 {[%emt 0:00:12] ...Rb2+ is the strong threat.} 56. Bxh5 {[%emt 0:00:20]} Kf4 {[%emt 0:01:04] Black mates.} 57. g6 {[%emt 0:00:15]} d3 {[%emt 0:00:15]} 58. Rc1 {[%emt 0:01:00]} Bf6 {[%emt 0:00:36]} 59. Rc7 {[%emt 0:00:43]} Kg5 {[%emt 0:00:33]} 60. g7 {[%emt 0:00:28] [#]} Bxg7 $1 {[%emt 0:00:23][%mdl 512]} 61. Rxg7+ {[%emt 0:00:05]} Kxh5 {[%emt 0:00:07] KR-KR} 62. Kf2 {[%emt 0:00:04]} Rb2+ {[%emt 0:01:24]} 63. Ke3 {[%emt 0:00:19]} Re2+ {[%emt 0:00:10]} 64. Kf4 {[%emt 0:00:31]} Rf2+ {[%emt 0:00:23]} 65. Ke3 {[%emt 0:00:51]} Rf3+ {[%emt 0:00:35]} 66. Kd2 {[%emt 0:00:05]} Kh4 {[%emt 0:00:14]} 67. Rg8 {[%emt 0:00:28]} Rg3 {[%emt 0:01:50] Weighted Error Value: White=0.75/Black=0.16 (very precise)} 0-1

[Event "67th Mexican-ch Open 2022"]
[Site "Chihuahua"]
[Date "2022.04.15"]
[Round "5.15"]
[White "Rascon Vega, Alfonso"]
[Black "Maass Garza R, Alejandro"]
[Result "1-0"]
[ECO "B40"]
[WhiteElo "2107"]
[BlackElo "2265"]
[Annotator "TA"]
[PlyCount "75"]
[EventDate "2022.04.12"]
[EventType "swiss"]
[EventCountry "MEX"]
[SourceTitle "playchess.com"]
[Source "ChessBase"]
[SourceQuality "1"]
[TimeControl "5400+30"]

{[%evp 19,75,21,53,44,51,28,42,38,86,80,75,39,48,54,54,34,45,0,0,0,78,86,141,122,145,-22,0,-15,60,62,92,84,285,288,262,270,291,-243,-265,-186,-255,-232,0,0,0,-45,-26,-55,0,0,0,0,0,0,714,693,762,747]} 1. e4 {[%emt 0:05:03]} c5 {[%emt 0:00:38]} 2. Nf3 {[%emt 0:00:23]} e6 {[%emt 0:00:29]} 3. c4 {[%emt 0:00:17]} Nc6 {[%emt 0:00:40]} 4. b3 {[%emt 0:00:33]} d6 {[%emt 0:01:43]} 5. Bb2 {[%emt 0:00:17]} Nf6 {[%emt 0:00:28]} 6. Nc3 {[%emt 0:00:21]} Be7 {[%emt 0:00:24]} 7. d4 {[%emt 0:00:17]} cxd4 {[%emt 0:01:24]} 8. Nxd4 {[%emt 0:00:06][%cal Bf3d4,Bd4c2,Bc2e3,Be3c4][%mdl 32]} O-O {[%emt 0:03:45]} 9. Be2 {[%emt 0:00:39]} a6 {[%emt 0:01:25]} 10. O-O {[%emt 0:00:19]} Qc7 {[%emt 0:01:17]} 11. Rc1 {[%emt 0:00:50] B40: Sicilian: 2...e6, Unusual lines.} Bd7 {[%emt 0:01:14]} 12. Kh1 {[%emt 0:02:31]} Rac8 {[%emt 0:09:20]} 13. Nc2 {[%emt 0:01:43] [#] White is slightly better.} Ne8 $146 {[%emt 0:11:53]} (13... Qa5 $14) ({Predecessor:} 13... Rfe8 14. f4 Bf8 15. Qd3 Qb8 16. Bf3 Rcd8 17. g4 h6 18. Rg1 Nh7 19. Ne2 b5 20. cxb5 axb5 {1-0 (46) Zakarian,D (2408)-Josse,M (2173) Daventry 2013}) 14. f4 $16 {[%emt 0:02:33]} Bf6 {[%emt 0:01:46]} 15. Bd3 {[%emt 0:01:34]} Qa5 {[%emt 0:04:51]} 16. Ne3 {[%emt 0:02:04]} Bd4 {[%emt 0:05:12]} 17. Rf3 {[%emt 0:01:38]} Nf6 {[%emt 0:04:03]} 18. c5 {[%emt 0:05:23]} e5 {[%emt 0:04:32] aiming for ...exf4.} (18... Qxc5 19. Ncd5 exd5 20. Rxc5 dxc5 21. Bxd4 Nxd4 22. e5 $14) 19. Nc4 {[%emt 0:08:42]} Qxc5 {[%emt 0:06:49]} (19... Qd8 $1 $11 {remains equal.}) 20. Ba3 {[%emt 0:01:22]} Nb4 {[%emt 0:01:20]} (20... Qa7 $142) 21. fxe5 $1 {[%emt 0:02:41]} dxe5 {[%emt 0:03:34] [#]} 22. Ne2 $2 {[%emt 0:14:22]} (22. Rxf6 $1 $16 {[%mdl 512]} gxf6 23. Bxb4 (23. Nd5 Nxd3 24. Qxd3 Qxa3 $14) 23... Qxb4 24. Nd5 Rxc4 25. Nxb4 Rxb4 26. Bc4) 22... a5 {[%emt 0:03:17]} (22... b5 $5 {[%cal Rd7g4]}) 23. Nxd4 {[%emt 0:00:56]} Qxd4 {[%emt 0:00:34]} (23... exd4 $11 24. e5 Ng4) 24. Bb2 $14 {[%emt 0:00:13]} Qa7 {[%emt 0:01:11]} 25. Nxe5 {[%emt 0:01:14]} Bg4 {[%emt 0:00:54]} (25... Nxd3 $16 26. Rxc8 (26. Rxd3 Nxe4 27. Bd4 Qxd4 $15) (26. Qxd3 Rxc1+ 27. Bxc1 Qc5 $11) 26... Rxc8 27. Qxd3 b5) 26. Rxc8 $18 {[%emt 0:00:49]} Rxc8 {[%emt 0:00:40]} 27. Bc4 $1 {[%emt 0:00:39]} Bxf3 {[%emt 0:05:42]} 28. Qxf3 {[%emt 0:00:31][%mdl 8192]} (28. Bxf7+ $18 {was the only winning move.} Kh8 29. Qxf3) 28... b5 $1 $19 {[%emt 0:05:32]} 29. Bxf7+ {[%emt 0:00:41] [#]} Kf8 $1 {[%emt 0:00:34] Hoping for ...Rc2.} 30. Be6 {[%emt 0:01:36] [#]} Rd8 {[%emt 0:02:35]} (30... Rc2 $1 $19 {[%cal Rc2b2]} 31. Nd7+ Ke7 32. Bxf6+ Kxe6 33. Nf8+ Kd6) 31. h4 {[%emt 0:01:38] a3 is the strong threat.} Qe7 {[%emt 0:02:16]} 32. Bf5 {[%emt 0:03:30] Threatens to win with a3. This bishop pair is nice.} (32. Qf5 $2 Rd1+ 33. Kh2 Qd6 $19) 32... Qd6 {[%emt 0:01:28] Strongly threatening ...Nd3.} 33. Qf2 {[%emt 0:22:22]} Qc7 {[%emt 0:07:54]} (33... Kg8 $1 $15 34. Qa7 Nc6 35. Qf7+ Kh8 36. Nxc6 Qxc6) 34. Bg4 $11 {[%emt 0:04:37]} Qc2 {[%emt 0:01:51]} 35. Qb6 $40 {[%emt 0:04:11][%csl LRa5,LRb5,LRd8][%mdl 128] Black needs to defend precisely.} (35. Qxc2 $2 Nxc2 36. Be2 Nd4 37. Bxd4 Rxd4 38. Bxb5 Rxe4 $17) 35... Qb1+ {[%emt 0:01:27]} 36. Kh2 {[%emt 0:00:06] Dancing on a razor blade.} Nxg4+ $4 {[%emt 0:00:42][%mdl 8192]} (36... Nc6 $11 37. Ba3+ (37. Qxc6 Nxg4+ 38. Nxg4 Qxb2 $11) (37. Qc5+ Ne7 $16) 37... b4 38. Qxc6 (38. Qc5+ Ne7 $11) 38... Nxg4+ 39. Nxg4 bxa3) 37. Nxg4 $18 {[%emt 0:00:06]} Qd1 {[%emt 0:02:00] [#] White must now prevent ...Qd6+.} 38. Bxg7+ $1 {[%emt 0:00:09][%mdl 512] Weighted Error Value: White=0.39/Black=0.37} 1-0

[Event "67th Mexican-ch Open 2022"]
[Site "Chihuahua"]
[Date "2022.04.15"]
[Round "5.17"]
[White "Avila Rodriguez, Joshua Ad"]
[Black "Guerrero Cataldo, Juan Andres"]
[Result "1-0"]
[ECO "B01"]
[WhiteElo "2182"]
[BlackElo "1976"]
[Annotator "RC"]
[PlyCount "45"]
[EventDate "2022.04.12"]
[EventType "swiss"]
[EventCountry "MEX"]
[SourceTitle "playchess.com"]
[Source "ChessBase"]
[SourceQuality "1"]
[TimeControl "5400+30"]

1. e4 {[%emt 0:02:25]} d5 {[%emt 0:00:09]} 2. exd5 {[%emt 0:00:17]} Qxd5 {[%emt 0:00:02]} 3. Nc3 {[%emt 0:00:10]} Qd6 {[%emt 0:00:01]} 4. d4 {[%emt 0:00:12]} Nf6 {[%emt 0:00:02]} 5. Nf3 {[%emt 0:00:09]} c6 {[%emt 0:00:07]} 6. Ne5 {[%emt 0:06:25]} g6 {[%emt 0:01:41]} 7. Bf4 {[%emt 0:10:42]} Qb4 {[%emt 0:03:46]} 8. a3 {[%emt 0:01:26]} Qxb2 {[%emt 0:01:51]} 9. Na4 {[%emt 0:00:11]} Qxa1 {[%emt 0:01:40]} 10. Qxa1 {[%emt 0:00:06]} Nd5 {[%emt 0:00:15]} 11. Bd2 {[%emt 0:01:36]} Bg7 {[%emt 0:00:02]} 12. Bd3 {[%emt 0:00:43]} O-O {[%emt 0:00:04]} 13. h4 {[%emt 0:02:12]} Nf6 {[%emt 0:01:28]} 14. Qc1 {[%emt 0:01:23]} h5 {[%emt 0:01:20]} 15. Bh6 {[%emt 0:00:16]} Nbd7 {[%emt 0:00:07]} 16. Bxg7 {[%emt 0:01:54]} Kxg7 {[%emt 0:00:02]} 17. Qg5 {[%emt 0:00:55]} Nxe5 {[%emt 0:01:08]} 18. dxe5 {[%emt 0:00:06]} Ng8 {[%emt 0:00:10]} 19. f3 {[%emt 0:00:13]} Nh6 {[%emt 0:02:36]} 20. g4 {[%emt 0:01:28]} b6 {[%emt 0:01:04]} 21. gxh5 {[%emt 0:00:20]} Bf5 {[%emt 0:00:08]} 22. Bxf5 {[%emt 0:00:38]} Nxf5 {[%emt 0:00:07]} 23. hxg6 {[%emt 0:02:09]} 1-0